{"text_format":"3","workbook":"xlsx","n_sheets":3,"sheets":["Berechnung","Beitragssätze und Höchstbeträge","Daten"],"read":"whole","date_system":"1900"}

{"sheet":"Berechnung","index":0,"n_rows":94,"n_cols":8,"rows_kept":94,"merged":[[0,0,0,10],[8,0,9,3],[19,0,20,6],[25,3,25,6],[27,0,27,6],[30,0,31,9],[36,5,37,9],[54,0,55,10],[57,0,57,10],[77,5,78,5],[77,6,78,10],[86,0,87,10],[91,0,91,10]]}
["Arbeitshilfe zur Aufteilung von Vorsorgeaufwendungen für Arbeitnehmer mit einer Beschäftigung in Österreich"]
[]
["Steuernummer",null,{"$f":"IF(B3=\"\",\"     ◀ bitte StNr. eintragen\",\"\")","v":"     ◀ bitte StNr. eintragen"},null,null,"Datum      ",{"$f":"TODAY()","v":"2024-12-09"}]
[]
["Steuerpflichtiger",null,{"$f":"IF(AND(B3<>\"\",B5=\"\"),\"     ◀ bitte Name eintragen\",\"\")","v":""}]
[]
["Veranlagungszeitraum",null,{"$f":"IF(AND(B3<>\"\",B5<>\"\",B7=\"\"),\"     ◀ bitte Jahr auswählen\",\"\")","v":""}]
[]
["Werte gemäß österreichischen Lohnzettel L16"]
[]
[]
["Bruttobezüge gem. Kennziffer 210",{"$nulls":4},{"$f":"(IF(AND(B7<>\"\",D12=\"\"),\"◀ bitte Bruttobezüge eintragen\",\"\"))","v":""}]
[]
[]
["darin enthaltene sonstige Bezüge gem. Kennziffer 220",{"$nulls":4},{"$f":"(IF(AND(D12<>\"\",D15=\"\"),\"◀ bitte eintragen (ggf. 0 €)\",\"\"))","v":""}]
[]
[]
["insgesamt einbehaltene SozV-Beiträge",{"$nulls":4},{"$f":"(IF(AND(D12<>\"\",D15<>\"\",D18=\"\",D23=\"\"),\"◀ bitte eintragen, falls bekannt\",\"\"))","v":""}]
[]
["Weitere Angaben"]
[]
[]
["Monate Sozialversicherungspflicht in Österreich",{"$nulls":4},{"$f":"IF(AND(D12<>\"\",D15<>\"\",D23=\"\"),\"◀ bitte Anzahl der Monate auswählen\",\"\")","v":""}]
[]
[]
["Maßgebender Artikel im DBA-Österreich",{"$nulls":6},{"$f":"IF(AND(D23<>\"\",D26=\"\"),\"     ◀ bitte DBA-Artikel auswählen\",\"\")","v":""}]
[]
[{"$f":"IF(D26<>\"\",VLOOKUP(D26,Daten!A3:B8,2,FALSE),\"\")","v":""}]
[]
[]
["Anlage N"]
[]
[]
["Bruttobezüge",null,null,{"$f":"IF(OR(D12=\"\",D15=\"\",D23=\"\",D26=\"\"),\"\",D12)","v":""}]
[]
["+ Beitrag betriebliche Vorsorgekasse"]
["   (vgl. BFH-Urteil v. 13.02.2020 - VI R 20/17)",null,null,{"$f":"IF(D26=\"\",\"\",IF(OR(D26=Daten!A3,D26=Daten!A4, D26=Daten!A5, D26=Daten!A7,AND(D18<>0,D18<>\"\",D26=Daten!A6),AND(D18<>0,D18<>\"\",D26=Daten!A8)),D12*1.53%,\"\"))","v":""},null,{"$f":"IF(D37=D12*1.53%,\"1,53 % der Bruttobezüge gemäß L16.\",IF(D37<>\"\",\"Betrag lt. beigefügten Nachweis.\",IF(AND(OR(D26=Daten!A6,D26=Daten!A8),OR(Berechnung!D18=\"\",Berechnung!D18=0)),\"Bitte prüfen Sie, ob Beiträge zur MV-Kasse vom ArbG gezahlt wurden und tragen Sie den Wert ggf. ein.\",\"\")))","v":""}]
[]
[]
["+/- sonstige Korrektur"]
[]
[]
["Bruttoarbeitslohn nach deutschem Steuerrecht",null,null,{"$f":"IF(OR(D12=\"\",D26=\"\",D23=\"\"),\"\",IF(AND(D34<>\"\",D37=\"\",D40=\"\"),D34,IF(AND(D34<>\"\",D37<>\"\",D40=\"\"),D34+D37,SUM(D34+D37+D40))))","v":""},null,{"$f":"IF(AND(D43<>\"\",D26=Daten!A5),HLOOKUP(B7,Daten!A24:O36,2,FALSE),IF(AND(Berechnung!D43<>\"\",Berechnung!D26<>\"\",B45=\"\"),HLOOKUP(B7,Daten!A24:O36,3,FALSE),\"\"))","v":""}]
[]
[null,{"$f":"IF(OR(D26=Daten!A3,D26=Daten!A8),\"davon nach DBA steuerpflichtig\",\"\")","v":""},{"$f":"IF(D45<>\"\",D45/D43,\"\")","v":""},null,null,{"$f":"IF(AND(D45<>\"\",OR(D26=Daten!A4,D26=Daten!A5,D26=Daten!A6,D26=Daten!A7)),\"◀ bitte Eingabe löschen\",IF(B45<>\"\",HLOOKUP(B7,Daten!A24:O36,3,FALSE),\"\"))","v":""}]
[]
[null,{"$f":"IF(B45<>\"\",\"davon nach DBA steuerfrei\",\"\")","v":""},{"$f":"IF(D47<>\"\",D47/D43,\"\")","v":""},{"$f":"IF(D45<>\"\",D43-D45,\"\")","v":""},null,{"$f":"IF(B47<>\"\",HLOOKUP(B7,Daten!A24:O36,4,FALSE),\"\")","v":""}]
[]
["Arbeitnehmerbeitrag Arbeiterkammer (Werbungskosten)",null,null,{"$f":"IF(OR(D15=\"\",D26=\"\",D23=\"\"),\"\",IF(OR(D26=Daten!A8,D26=Daten!A6),\"\",IF(((D12-D15)*0.5%)<('Beitragssätze und Höchstbeträge'!T13/12*D23),(D12-D15)*0.5%,'Beitragssätze und Höchstbeträge'!T13/12*D23)))","v":""},null,{"$f":"IF(F51<>\"\",\"\",IF(OR(AND(B51=\"\",OR(D26=Daten!A6,D26=Daten!A8)),AND(B51=\"\",D49<>\"\",F45=\"\"),D18=\"\"),HLOOKUP(B7,Daten!A24:O36,5,FALSE),\"\"))","v":{"$error":"#N/A"}},{"$f":"IF(B7=\"\",\"\",IF(OR(D26=Daten!A6,D26=Daten!A8),\"Ansatz nur mit gesonderten Nachweis.\",IF(OR(D49=(D12-D15)*0.5%,D49='Beitragssätze und Höchstbeträge'!T13/12*D23),\"0,5 % der Bruttobezüge gemäß L16, ohne Beträge\", \"Beitrag lt. gesondertem Nachweis.\")))","v":""}]
[]
[null,{"$f":"IF(D45<>\"\",\"Anteil steuerpflichtige Einkünfte\",\"\")","v":""},{"$f":"IF(B51<>\"\",C45,\"\")","v":""},{"$f":"IF(AND(D49<>\"\",B51<>\"\"),D49*C45,\"\")","v":""},null,{"$f":"IF(B51<>\"\",HLOOKUP(B7,Daten!A24:O36,5,FALSE),\"\")","v":""},{"$f":"IF(B7=\"\",\"\",IF(OR(D49=\"\",D49<>'Beitragssätze und Höchstbeträge'!T19),\"\",IF(OR(D26=Daten!A6,D26=Daten!A8),\"\",\"nach L16 Kennziffer 220. Höchstbeitrag \"&TEXT('Beitragssätze und Höchstbeträge'!T13/12*Berechnung!D23,\"#.##0,00 €\")&\".\")))","v":""}]
[]
[null,{"$f":"IF(D47<>\"\",\"Anteil steuerfreie Einkünfte\",\"\")","v":""},{"$f":"IF(B53<>\"\",C47,\"\")","v":""},{"$f":"IF(AND(B53<>\"\",D49<>\"\"),D49*C47,\"\")","v":""},null,{"$f":"IF(B53<>\"\",HLOOKUP(B7,Daten!A24:O36,6,FALSE),\"\")","v":""}]
[]
["Anlage Vorsorgeaufwand"]
[]
[{"$f":"IF(AND(A58<>Daten!A14,A58<>Daten!A15,A58<>Daten!A16),\"Der Nachweis von höhren Beiträgen ist möglich.\",\"\")","v":"Der Nachweis von höhren Beiträgen ist möglich."}]
[{"$f":"IF(OR(D26=\"\",D12=\"\"),\"\",IF(AND(D26=Daten!A6,OR(Berechnung!D18=\"\",Berechnung!D18=0)),Daten!A14,IF(AND(D26=Daten!A8,OR(Berechnung!D18=\"\",Berechnung!D18=0)),Daten!A15,IF(AND(D18<>\"\",D18<>0,D18<('Beitragssätze und Höchstbeträge'!H19+'Beitragssätze und Höchstbeträge'!N19)),Daten!A16,IF(AND(D18<>\"\",D18<>0,D18>(D60+D70+D82)),Daten!A17,\"\")))))","v":""}]
[]
["Arbeitnehmerbeitrag Rentenversicherung",null,null,{"$f":"IF(B7=\"\",\"\",IF(OR(D12=\"\",D26=\"\",AND(D18<>\"\",D18<>\"0\",('Beitragssätze und Höchstbeträge'!H19+'Beitragssätze und Höchstbeträge'!N19)>Berechnung!D18),AND(OR(D18=\"\",D18=0),OR(D26=Daten!A6,D26=Daten!A8))),\"\",'Beitragssätze und Höchstbeträge'!H19))","v":""},null,{"$f":"IF(B62=\"\",HLOOKUP(B7,Daten!A24:O36,8,FALSE),\"\")","v":{"$error":"#N/A"}},{"$f":"IF(B7=\"\",\"\",IF(AND(D60<>\"\",D60<>'Beitragssätze und Höchstbeträge'!H19),\"    Beitrag lt. gesonderten Nachweis.\",IF(D60='Beitragssätze und Höchstbeträge'!H19,\"    10,25 % der Bruttobezüge gemäß L16. Höchstbetrag \"&TEXT('Beitragssätze und Höchstbeträge'!H13/12*Berechnung!D23,\"#.##0,00 €\")&\".\",\"\")))","v":""}]
[]
[null,{"$f":"IF(D47<>\"\",\"davon abzugsfähig\",\"\")","v":""},{"$f":"IF(B62<>\"\",C45,\"\")","v":""},{"$f":"IF(AND(B62<>\"\",D60<>\"\"),D60*C62,\"\")","v":""},null,{"$f":"IF(B62<>\"\",HLOOKUP(B7,Daten!A24:O36,8,FALSE),\"\")","v":""}]
[]
[]
["Arbeitgeberbeitrag Rentenversicherung",null,null,{"$f":"IF(B7=\"\",\"\",IF(OR(D12=\"\",D26=\"\",AND(D18<>\"\",D18<>\"0\",('Beitragssätze und Höchstbeträge'!H19+'Beitragssätze und Höchstbeträge'!N19)>Berechnung!D18),AND(OR(D18=\"\",D18=0),OR(D26=Daten!A6,D26=Daten!A8))),\"\",'Beitragssätze und Höchstbeträge'!K19))","v":""},null,{"$f":"IF(B67=\"\",HLOOKUP(B7,Daten!A24:O36,9,FALSE),\"\")","v":{"$error":"#N/A"}},{"$f":"IF(B7=\"\",\"\",IF(AND(D65<>\"\",D65<>'Beitragssätze und Höchstbeträge'!K19),\"    Beitrag lt. gesonderten Nachweis.\",IF(D65='Beitragssätze und Höchstbeträge'!K19,\"    12,55 % der Bruttobezüge gemäß L16. Höchstbetrag \"&TEXT('Beitragssätze und Höchstbeträge'!K13/12*Berechnung!D23,\"#.##0,00 €\")&\".\",\"\")))","v":""}]
[]
[null,{"$f":"IF(D47<>\"\",\"davon zu berücksichtigen\",\"\")","v":""},{"$f":"IF(B67<>\"\",C45,\"\")","v":""},{"$f":"IF(AND(B67<>\"\",D65<>\"\"),D65*C67,\"\")","v":""},null,{"$f":"IF(B67<>\"\",HLOOKUP(B7,Daten!A24:O36,9,FALSE),\"\")","v":""}]
[]
[]
["Beitrag Krankenversicherung",null,null,{"$f":"IF(B7=\"\",\"\",IF(OR(D12=\"\",D26=\"\",AND(D18<>\"\",D18<>\"0\",('Beitragssätze und Höchstbeträge'!H19+'Beitragssätze und Höchstbeträge'!N19)>Berechnung!D18),AND(OR(D18=\"\",D18=0),OR(D26=Daten!A6,D26=Daten!A8))),\"\",'Beitragssätze und Höchstbeträge'!N19))","v":""},null,{"$f":"IF(B72=\"\",HLOOKUP(B7,Daten!A24:O36,10,FALSE),\"\")","v":{"$error":"#N/A"}},{"$f":"IF(B7=\"\",\"\",IF(AND(D70<>\"\",D70<>'Beitragssätze und Höchstbeträge'!N19),\"    Beitrag lt. gesonderten Nachweis.\",IF(D70='Beitragssätze und Höchstbeträge'!N19,\"    3,87 % der Bruttobezüge gemäß L16. Höchstbetrag \"&TEXT('Beitragssätze und Höchstbeträge'!N13/12*Berechnung!D23,\"#.##0,00 €\")&\".\",\"\")))","v":""}]
[]
[null,{"$f":"IF(D47<>\"\",\"davon abzugsfähig\",\"\")","v":""},{"$f":"IF(B72<>\"\",C45,\"\")","v":""},{"$f":"IF(AND(B72<>\"\",D70<>\"\"),D70*C72,\"\")","v":""},null,{"$f":"IF(B72<>\"\",HLOOKUP(B7,Daten!A24:O36,10,FALSE),\"\")","v":""}]
[]
[]
["Pflegepflichtversicherung",null,null,"---",null,{"$f":"HLOOKUP(B7,Daten!A24:O36,11,FALSE)","v":{"$error":"#N/A"}},"    Keine Pflegepflichtversicherung in Österreich."]
[]
[]
["Private Pflegeversicherung",{"$nulls":4},{"$f":"HLOOKUP(B7,Daten!A24:O36,12,FALSE)","v":{"$error":"#N/A"}},{"$f":"IF(AND(D47<>\"\",D47<>0),\"    Beitrag lt. gesonderten Nachweis. Keine Kürzung wegen steuerfreien\n    Arbeitslohn nach DBA, da keine Pflichtbeiträge.\",\"    Beitrag lt. gesonderten Nachweis.\")","v":"    Beitrag lt. gesonderten Nachweis."}]
[]
[]
[]
["Arbeitslosenversicherung",null,null,{"$f":"IF(B7=\"\",\"\",IF(OR(D12=\"\",D26=\"\",AND(D18<>\"\",D18<>\"0\",('Beitragssätze und Höchstbeträge'!H19+'Beitragssätze und Höchstbeträge'!N19)>Berechnung!D18),AND(OR(D18=\"\",D18=0),OR(D26=Daten!A6,D26=Daten!A8))),\"\",IF(AND(D18<>\"\",D18<>0,OR(D26=Daten!A6,Daten!A8),Berechnung!D18<('Beitragssätze und Höchstbeträge'!H17+'Beitragssätze und Höchstbeträge'!N17+'Beitragssätze und Höchstbeträge'!Q17)),D18-'Beitragssätze und Höchstbeträge'!H19-'Beitragssätze und Höchstbeträge'!N19,IF(AND(D18<>\"\",D18<>0,D18<('Beitragssätze und Höchstbeträge'!H19+'Beitragssätze und Höchstbeträge'!N19+'Beitragssätze und Höchstbeträge'!Q19+'Beitragssätze und Höchstbeträge'!T19)),D18-'Beitragssätze und Höchstbeträge'!H19-'Beitragssätze und Höchstbeträge'!N19-'Beitragssätze und Höchstbeträge'!T19,'Beitragssätze und Höchstbeträge'!Q19))))","v":""},null,{"$f":"IF(B84=\"\",HLOOKUP(B7,Daten!A24:O36,13,FALSE),\"\")","v":{"$error":"#N/A"}},{"$f":"IF(B7=\"\",\"\",IF(OR(D82=D18-'Beitragssätze und Höchstbeträge'!H19-'Beitragssätze und Höchstbeträge'!N19-'Beitragssätze und Höchstbeträge'!T19,D82=D18-'Beitragssätze und Höchstbeträge'!H19-'Beitragssätze und Höchstbeträge'!N19),\"    Noch verbleibender Betrag der tatsächlichen SozV-Beiträge.\",IF(AND(D82<>\"\",D82<>'Beitragssätze und Höchstbeträge'!Q19),\"    Beitrag lt. gesonderten Nachweis.\",IF(D82='Beitragssätze und Höchstbeträge'!Q19,\"\"&IF(B7>2023,\"    2,95 %\",\"    3 %\")&\" der Bruttobezüge gemäß L16. Höchstbetrag \"&TEXT('Beitragssätze und Höchstbeträge'!Q13/12*Berechnung!D23,\"#.##0,00 €\")&\".\",\"\"))))","v":""}]
[{"$nulls":5},0]
[null,{"$f":"IF(D47<>\"\",\"davon abzugsfähig\",\"\")","v":""},{"$f":"IF(B84<>\"\",C45,\"\")","v":""},{"$f":"IF(AND(B84<>\"\",D82<>\"\"),D82*C84,\"\")","v":""},null,{"$f":"IF(B84<>\"\",\"Anlage Vorsorgaufw. Zeile 45\",\"\")","v":""}]
[]
[]
[{"$f":"IF(AND(D47<>\"\",D47<>0),Daten!A18,\"\")","v":""}]
[]
[]
[]
["Bemerkungen"]
[]
[]
["Vorlagenversion: Dezember 2024"]

{"sheet":"Beitragssätze und Höchstbeträge","index":1,"n_rows":19,"n_cols":20,"rows_kept":19,"merged":[[1,2,2,2],[1,3,2,3],[1,6,1,7],[1,9,1,10],[1,12,1,13],[1,15,1,16],[1,18,1,19],[16,5,16,6]]}
[]
[null,null,"Beitragsbemessungsgrenze für Renten-, Kranken- und Arbeitslosenversicherung","Beitragsbemessungsgrenze für Arbeiterkammerbeitrag (ohne 13. und 14. Bezug)",null,null,"Rentenversicherung ArbN-Anteil",null,null,"Rentenversicherung ArbG-Anteil",null,null,"Krankenversicherung ArbN-Anteil",null,null,"Arbeitslosenversicherung ArbN-Anteil",null,null,"Arbeiterkammerbeitrag ArbN-Anteil"]
[{"$nulls":6},"Beitragssatz","Höchstbeitrag",null,"Beitragssatz","Höchstbeitrag",null,"Beitragssatz","Höchstbeitrag",null,"Beitragssatz","Höchstbeitrag",null,"Beitragssatz","Höchstbeitrag"]
[null,2018,{"v":71820,"d":"71,820.00 €"},{"v":61560,"d":"61,560.00 €"},null,2018,{"v":0.1025,"d":"10.25%"},{"v":7361.55,"d":"7,361.55 €"},null,{"v":0.1255,"d":"12.55%"},{"v":9013.41,"d":"9,013.41 €"},null,{"v":0.0387,"d":"3.87%"},{"v":2779.43,"d":"2,779.43 €"},null,{"v":0.03,"d":"3.00%"},{"v":2154.6,"d":"2,154.60 €"},null,{"v":0.005,"d":"0.50%"},{"v":307.8,"d":"307.80 €"}]
[null,2019,{"v":73080,"d":"73,080.00 €"},{"v":62640,"d":"62,640.00 €"},null,2019,{"v":0.1025,"d":"10.25%"},{"v":7490.7,"d":"7,490.70 €"},null,{"v":0.1255,"d":"12.55%"},{"v":9171.54,"d":"9,171.54 €"},null,{"v":0.0387,"d":"3.87%"},{"v":2828.2,"d":"2,828.20 €"},null,{"v":0.03,"d":"3.00%"},{"v":2192.4,"d":"2,192.40 €"},null,{"v":0.005,"d":"0.50%"},{"v":313.2,"d":"313.20 €"}]
[null,2020,{"v":75180,"d":"75,180.00 €"},{"v":64440,"d":"64,440.00 €"},null,2020,{"v":0.1025,"d":"10.25%"},{"v":7705.95,"d":"7,705.95 €"},null,{"v":0.1255,"d":"12.55%"},{"v":9435.09,"d":"9,435.09 €"},null,{"v":0.0387,"d":"3.87%"},{"v":2909.47,"d":"2,909.47 €"},null,{"v":0.03,"d":"3.00%"},{"v":2255.4,"d":"2,255.40 €"},null,{"v":0.005,"d":"0.50%"},{"v":322.2,"d":"322.20 €"}]
[null,2021,{"v":77700,"d":"77,700.00 €"},{"v":66600,"d":"66,600.00 €"},null,2021,{"v":0.1025,"d":"10.25%"},{"v":7964.25,"d":"7,964.25 €"},null,{"v":0.1255,"d":"12.55%"},{"v":9751.35,"d":"9,751.35 €"},null,{"v":0.0387,"d":"3.87%"},{"v":3006.99,"d":"3,006.99 €"},null,{"v":0.03,"d":"3.00%"},{"v":2331,"d":"2,331.00 €"},null,{"v":0.005,"d":"0.50%"},{"v":333,"d":"333.00 €"}]
[null,2022,{"v":79380,"d":"79,380.00 €"},{"v":68040,"d":"68,040.00 €"},null,2022,{"v":0.1025,"d":"10.25%"},{"v":8136.45,"d":"8,136.45 €"},null,{"v":0.1255,"d":"12.55%"},{"v":9962.19,"d":"9,962.19 €"},null,{"v":0.0387,"d":"3.87%"},{"v":3072.01,"d":"3,072.01 €"},null,{"v":0.03,"d":"3.00%"},{"v":2381.4,"d":"2,381.40 €"},null,{"v":0.005,"d":"0.50%"},{"v":340.2,"d":"340.20 €"}]
[null,2023,{"v":81900,"d":"81,900.00 €"},{"v":70200,"d":"70,200.00 €"},null,2023,{"v":0.1025,"d":"10.25%"},{"v":8394.75,"d":"8,394.75 €"},null,{"v":0.1255,"d":"12.55%"},{"v":10278.45,"d":"10,278.45 €"},null,{"v":0.0387,"d":"3.87%"},{"v":3169.53,"d":"3,169.53 €"},null,{"v":0.03,"d":"3.00%"},{"v":2457,"d":"2,457.00 €"},null,{"v":0.005,"d":"0.50%"},{"v":351,"d":"351.00 €"}]
[null,2024,{"v":84840,"d":"84,840.00 €"},{"v":72720,"d":"72,720.00 €"},null,2024,{"v":0.1025,"d":"10.25%"},{"$f":"C10*G10","v":{"v":8696.1,"d":"8,696.10 €"}},null,{"v":0.1255,"d":"12.55%"},{"$f":"C10*J10","v":{"v":10647.42,"d":"10,647.42 €"}},null,{"v":0.0387,"d":"3.87%"},{"$f":"C10*M10","v":{"v":3283.308,"d":"3,283.31 €"}},null,{"v":0.0295,"d":"2.95%"},{"$f":"C10*P10","v":{"v":2502.7799999999997,"d":"2,502.78 €"}},null,{"v":0.005,"d":"0.50%"},{"$f":"D10*S10","v":{"v":363.6,"d":"363.60 €"}}]
[null,2025,{"$nulls":3},2025]
[]
["Höchstbetrag ausgewähltes Jahr",null,{"$f":"VLOOKUP(Berechnung!B7,'Beitragssätze und Höchstbeträge'!B3:T12,2,FALSE)","v":{"$error":"#N/A"}},{"$f":"VLOOKUP(Berechnung!B7,'Beitragssätze und Höchstbeträge'!B3:T12,3,FALSE)","v":{"$error":"#N/A"}},{"$nulls":3},{"$f":"VLOOKUP(Berechnung!B7,'Beitragssätze und Höchstbeträge'!B4:T12,7,FALSE)","v":{"$error":"#N/A"}},null,null,{"$f":"VLOOKUP(Berechnung!B7,'Beitragssätze und Höchstbeträge'!B4:T12,10,FALSE)","v":{"$error":"#N/A"}},null,null,{"$f":"VLOOKUP(Berechnung!B7,'Beitragssätze und Höchstbeträge'!B4:T12,13,FALSE)","v":{"$error":"#N/A"}},null,null,{"$f":"VLOOKUP(Berechnung!B7,'Beitragssätze und Höchstbeträge'!B4:T12,16,FALSE)","v":{"$error":"#N/A"}},null,null,{"$f":"VLOOKUP(Berechnung!B7,'Beitragssätze und Höchstbeträge'!B4:T12,19,FALSE)","v":{"$error":"#N/A"}}]
[]
["zeitanteilig gekürzt",null,{"$f":"IF(A15<>\"\",C13/12*Berechnung!D23,\"\")","v":{"$error":"#N/A"}},{"$f":"IF(A15<>\"\",D13/12*Berechnung!D23,\"\")","v":{"$error":"#N/A"}},{"$nulls":3},{"$f":"IF(A15<>\"\",H13/12*Berechnung!D23,\"\")","v":{"$error":"#N/A"}},null,null,{"$f":"IF(A15<>\"\",K13/12*Berechnung!D23,\"\")","v":{"$error":"#N/A"}},null,null,{"$f":"IF(A15<>\"\",N13/12*Berechnung!D23,\"\")","v":{"$error":"#N/A"}},null,null,{"$f":"IF(A15<>\"\",Q13/12*Berechnung!D23,\"\")","v":{"$error":"#N/A"}},null,null,{"$f":"IF(A15<>\"\",T13/12*Berechnung!D23,\"\")","v":{"$error":"#N/A"}}]
[]
[{"$nulls":5},"Arbeitslohn x Beitragssatz",null,{"$f":"Berechnung!D12*VLOOKUP(Berechnung!B7,'Beitragssätze und Höchstbeträge'!F3:T12,2,FALSE)","v":{"$error":"#N/A"}},null,null,{"$f":"Berechnung!D12*VLOOKUP(Berechnung!B7,'Beitragssätze und Höchstbeträge'!F3:T12,5,FALSE)","v":{"$error":"#N/A"}},null,null,{"$f":"Berechnung!D12*VLOOKUP(Berechnung!B7,'Beitragssätze und Höchstbeträge'!F3:T12,8,FALSE)","v":{"$error":"#N/A"}},null,null,{"$f":"Berechnung!D12*VLOOKUP(Berechnung!B7,'Beitragssätze und Höchstbeträge'!F3:T12,11,FALSE)","v":{"$error":"#N/A"}},null,null,{"$f":"(Berechnung!D12-Berechnung!D15)*VLOOKUP(Berechnung!B7,'Beitragssätze und Höchstbeträge'!F3:T12,14,FALSE)","v":{"$error":"#N/A"}}]
[]
[{"$nulls":5},"Ansatz (niedrigerer Wert)",null,{"$f":"IF(AND(H15<>\"\",H15>H17),H17,IF(AND(H15<>\"\",H15<=H17),H15,IF(AND(H15=\"\",H13>H17),H17,IF(AND(H15=\"\",H13<=H17),H13,\"\"))))","v":{"$error":"#N/A"}},null,null,{"$f":"IF(AND(K15<>\"\",K15>K17),K17,IF(AND(K15<>\"\",K15<=K17),K15,IF(AND(K15=\"\",K13>K17),K17,IF(AND(K15=\"\",K13<=K17),K13,\"\"))))","v":{"$error":"#N/A"}},null,null,{"$f":"IF(AND(N15<>\"\",N15>N17),N17,IF(AND(N15<>\"\",N15<=N17),N15,IF(AND(N15=\"\",N13>N17),N17,IF(AND(N15=\"\",N13<=N17),N13,\"\"))))","v":{"$error":"#N/A"}},null,null,{"$f":"IF(AND(Q15<>\"\",Q15>Q17),Q17,IF(AND(Q15<>\"\",Q15<=Q17),Q15,IF(AND(Q15=\"\",Q13>Q17),Q17,IF(AND(Q15=\"\",Q13<=Q17),Q13,\"\"))))","v":{"$error":"#N/A"}},null,null,{"$f":"IF(AND(T15<>\"\",T15>T17),T17,IF(AND(T15<>\"\",T15<=T17),T15,IF(AND(T15=\"\",T13>T17),T17,IF(AND(T15=\"\",T13<=T17),T13,\"\"))))","v":{"$error":"#N/A"}}]

{"sheet":"Daten","index":2,"n_rows":36,"n_cols":15,"rows_kept":36,"hidden":true}
[]
[]
["Art. 15 Abs. 1 und 2","Dem Ansässigkeitsstaat Deutschland steht das Besteuerungsrecht für Tätigkeitstage in Deutschland (z. B. Homeoffice) und für Tätigkeitstage außerhalb von Österreich (z. B. Dienstreisen) zu."]
["Art. 15 Abs. 5 - Schifffahrt und Luftverkehr","Volle Besteuerung im Ansässigkeitsstaat Deutschland und Vermeidung der Doppelbesteuerung durch Anrechnung der österreichischen Steuern."]
["Art. 15 Abs. 6 - Grenzgänger","Ausschließliche Besteuerung im Ansässigkeitsstaat Deutschland."]
["Art. 16 Abs. 2 - Geschäftsführer und Vorstände","Freistellung im Ansässigkeitsstaat Deutschland. Die Besteuerung in Österreich ist nachzuweisen."]
["Art. 17 - Künstler und Sportler","Volle Besteuerung in Deutschland und Vermeidung der Doppelbesteuerung durch Anrechnung der österreichischen Steuern."]
["Art. 19 Abs. 1 - öffentlicher Dienst","Für Arbeitstage im Ansässigkeitsstaat Deutschland (z. B. Homeoffice) kann sich nach Art. 19 Abs. 1 Satz 2 DBA ein deutsches Besteuerungsrecht ergeben."]
[]
[]
[]
[]
[]
["Es handelt sich um einen Geschäftsführer bzw. Vorstand und es liegt keine Eintragung von SozV-Beiträgen in Zeile 18 der Excel-Vorlage vor. Da unklar ist, ob eine SozV-Pflicht in Österreich bestand, sind die SozV-Beiträge nachzuweisen."]
["Es handelt sich um einen Angestellten im öffentlichen Dienst und es liegt keine Eintragung von SozV-Beiträgen in Zeile 18 der Excel-Vorlage vor. Da unklar ist, ob eine SozV-Pflicht in Österreich bestand, sind die SozV-Beiträge nachzuweisen."]
["Die tatsächlichen SozV-Beiträge (Zeile 18 der Excel-Vorlage) sind niedriger als die pauschal ermittelten Beiträge. Ein Ansatz der pauschalen Ermittlung würde daher zu einem unzutreffenden Ergebnis führen. Eine Aufteilung der Beiträge ist nur anhand von Nachweisen möglich."]
["Nicht alle österreichischen SozV-Beiträge sind nach deutschem Steuerrecht als Sonderausgabe abzugsfähig. Beispielsweise besteht keine Abzugsmöglichkeit für Pflichtbeiträge zur Wohnraumförderung. Aus diesem Grund sind die tatsächlichen SozV-Beiträge (Zeile 18 der Excel-Vorlage) höher als die nach der pauschalen Ermittlung berücksichtigungsfähigen Beiträge."]
["Für Pflichtbeiträge, die in einen unmittelbarem wirtschaftlichen Zusammenhang mit nach DBA steuerfreien Einnahmen stehen, besteht nach § 10 Abs. 2 Satz 1 Nr. 1 EStG ein Abzugsverbot. Daher ist nur ein Teil der SozV-Beiträge abzugsfähig. Vgl. auch Rz. 93 - 98 im BMF-Schreiben vom 12.12.2023."]
[]
[]
[]
[]
[]
[null,2018,2019,2020,2021,2022,2023,2024,2025,2026,2027,2028,2029,2030,2031]
["stpfl. Arbeitslohn Grenzgänger","Anlage N Zeile 26","Anlage N Zeile 26","Anlage N Zeile 26","Anlage N Zeile 26","Anlage N Zeile 26","Anlage N Zeile 29","Anlage N Zeile 29"]
["stpfl. Arbeitslohn ohne Lohnsteuerabzug","Anlage N Zeile 21","Anlage N Zeile 21","Anlage N Zeile 21","Anlage N Zeile 21","Anlage N Zeile 21","Anlage N Zeile 21","Anlage N Zeile 21"]
["steuerfreier Arbeitslohn Progressionsvorbehalt","Anlage N Zeile 22","Anlage N Zeile 22","Anlage N Zeile 22","Anlage N Zeile 22","Anlage N Zeile 22","Anlage N Zeile 24","Anlage N Zeile 24"]
["WK Arbeiterkammer zu stpfl. Einkünften","Anlage N Zeile 40","Anlage N Zeile 41","Anlage N Zeile 41","Anlage N Zeile 41","Anlage N Zeile 41","Anlage N Zeile 56","Anlage N Zeile 56"]
["WK Arbeiterkammer zu Progressionseinkünften","Anlage N Zeile 94","Anlage N Zeile 94","Anlage N Zeile 76","Anlage N Zeile 76","Anlage N Zeile 76","Anlage N Zeile 84","Anlage N Zeile 84"]
[]
["RV ArbN-Beitrag","Anlage Vorsorgeaufw. Zeile 4","Anlage Vorsorgeaufw. Zeile 4","Anlage Vorsorgeaufw. Zeile 4","Anlage Vorsorgeaufw. Zeile 4","Anlage Vorsorgeaufw. Zeile 4","Anlage Vorsorgeaufw. Zeile 4","Anlage Vorsorgeaufw. Zeile 4"]
["RV ArbG-Beitrag","Anlage Vorsorgeaufw. Zeile 9","Anlage Vorsorgeaufw. Zeile 9","Anlage Vorsorgeaufw. Zeile 9","Anlage Vorsorgeaufw. Zeile 9","Anlage Vorsorgeaufw. Zeile 9","Anlage Vorsorgeaufw. Zeile 9","Anlage Vorsorgeaufw. Zeile 9"]
["ausländ. Krankenversicherung","Anlage Vorsorgeaufw. Zeile 31","Anlage Vorsorgeaufw. Zeile 31","Anlage Vorsorgeaufw. Zeile 31","Anlage Vorsorgeaufw. Zeile 31","Anlage Vorsorgeaufw. Zeile 31","Anlage Vorsorgeaufw. Zeile 28","Anlage Vorsorgeaufw. Zeile 28"]
["ausländ. Pflegeversicherung","Anlage Vorsorgeaufw. Zeile 33","Anlage Vorsorgeaufw. Zeile 33","Anlage Vorsorgeaufw. Zeile 33","Anlage Vorsorgeaufw. Zeile 33","Anlage Vorsorgeaufw. Zeile 33","Anlage Vorsorgeaufw. Zeile 30","Anlage Vorsorgeaufw. Zeile 30"]
["inländ. private Pflegeversicherung","Anlage Vorsorgaufw. Zeile 29 (Zeile 36 bei ausländ. PV)","Anlage Vorsorgaufw. Zeile 28 (Zeile 36 bei ausländ. PV)","Anlage Vorsorgaufw. Zeile 27 (Zeile 36 bei ausländ. PV)","Anlage Vorsorgaufw. Zeile 27 (Zeile 36 bei ausländ. PV)","Anlage Vorsorgaufw. Zeile 27 (Zeile 36 bei ausländ. PV)","Anlage Vorsorgaufw. Zeile 27 (Zeile 33 bei ausländ. PV)","Anlage Vorsorgaufw. Zeile 27 (Zeile 33 bei ausländ. PV)"]
["Arbeitslosenversicherung","Anlage Vorsorgeaufw. Zeile 46","Anlage Vorsorgeaufw. Zeile 45","Anlage Vorsorgeaufw. Zeile 45","Anlage Vorsorgeaufw. Zeile 45","Anlage Vorsorgeaufw. Zeile 45","Anlage Vorsorgeaufw. Zeile 43","Anlage Vorsorgeaufw. Zeile 43"]